Cogmind - Beta 15 @@@ ROGUE MODE // 2025.07.22 @ 14:51:52 Player: amhumam Result: Destroyed by 3D-HCA(R) with Subdweller Machine Gun Performance ------------- Evolutions (0) 0 Regions Visited (2) 400 Robots Destroyed (7) 35 Value Destroyed (240) 240 Prototype IDs (0) 0 Alien Tech Used (0) 0 Bonus (-122) -122 TOTAL SCORE: 553 Bonus ------- Friendly Fire -122 Cogmind --------- Core Integrity 0/250 Matter 266/300 Energy 200/200 System Corruption 0% Temperature Cool (2) Movement Rolling (130) Ox2 Location -10/Subcaves Parts ------- > --- POWER (1) -------- Subdweller Power Source > --- PROPULSION (2) --- Subdweller Monowheel > --- UTILITY (2) ------ Small Storage Unit Large Storage Unit > --- WEAPON (2) ------- Subdweller Beam Cannon Subdweller Machine Gun > --- INVENTORY (15) --- Improved Heat Sink Improved Heat Sink Small Laser Salvaging Laser Salvaging Laser Salvaging Laser Subdweller Laser Subdweller Machine Gun Flamer Peak State ------------ > --- POWER ------------ Subdweller Power Source > --- PROPULSION ------- Subdweller Monowheel Subdweller Monowheel > --- UTILITY ---------- Small Storage Unit Large Storage Unit > --- WEAPON ----------- Subdweller Laser Subdweller Machine Gun > --- INVENTORY -------- Improved Heat Sink Improved Heat Sink Small Laser Salvaging Laser Salvaging Laser Salvaging Laser Subdweller Machine Gun Flamer [Rating: 13] Favorites ----------- Power Subdweller Power Source Engine Subdweller Power Source Propulsion Light Treads Treads Light Treads Wheel Subdweller Monowheel Utility Small Storage Unit Storage Small Storage Unit Weapon Light Assault Rifle Energy Gun Small Laser Energy Cannon Subdweller Beam Cannon Ballistic Gun Light Assault Rifle Launcher Grenade Launcher Build | -11 -10 -10 ------- Run | Yrd Mat Sub Slots Evolved . | . . . Power . | . . . Propulsion . | . . . Utility . | . . . Weapon . | . . . Parts Attached 18 | 6 1 11 Power 3 | 1 . 2 Engine 3 | 1 . 2 Core . | . . . Reactor . | . . . Propulsion 4 | 2 . 2 Treads 2 | 2 . . Leg . | . . . Wheel 2 | . . 2 Hover . | . . . Flight . | . . . Utility 2 | 1 1 . Device . | . . . Storage 2 | 1 1 . Processor . | . . . Hackware . | . . . Protection . | . . . Artifact . | . . . Weapon 9 | 2 . 7 Energy Gun 4 | 1 . 3 Energy Cannon 1 | . . 1 Ballistic Gun 3 | 1 . 2 Ballistic Cannon . | . . . Launcher 1 | . . 1 Special Weapon . | . . . Impact Weapon . | . . . Slashing Weapon . | . . . Piercing Weapon . | . . . Special Melee Weapon . | . . . Unidentified Prototypes . | . . . Parts Lost 7 | . . 7 Power 2 | . . 2 Propulsion 3 | . . 3 Utility . | . . . Weapon 2 | . . 2 Highest Loss Streak 4 | . . 4 To Critical Strikes . | . . . Average Backups 6 | . 3 7 Power . | . 1 . Propulsion . | . . . Utility 1 | . . 1 Weapon 4 | . 1 4 Tool/Special . | . . . Unused Backups 5 | . . 5 Power . | . . . Propulsion . | . . . Utility 2 | . . 2 Weapon 3 | . . 3 Tool/Special . | . . . Average Slot Usage (%) 98 | . 95 99 Engine 13 | . 14 13 Treads 17 | . 28 15 Wheel 10 | . . 11 Storage 27 | . 23 28 Energy Gun 12 | . 14 12 Ballistic Gun 14 | . 14 14 Peak Build Rating 13 | 6 7 13 Average Rating 8 | 4 6 9 On Entrance 4 | . 6 7 Naked Turns . | . . . Heaviest Build 42 | 12 32 42 Greatest Support 40 | 40 40 40 Greatest Overweight (x) 2 | . . 2 Average Overweight (x) . | . . . Largest Inventory Capacity 15 | 8 15 15 Average Capacity 14 | 7 13 15 Most Carried 10 | 2 4 10 Average Carried 6 | . 3 7 Final Capacity 15 | 8 15 15 Final Carried 9 | 2 4 9 Class Distribution -------------------- 100% | Mutant Dominant Class ---------------- Mutant | -10/Materials Mutant | -10/Subcaves Resources | -11 -10 -10 ----------- Run | Yrd Mat Sub Matter Collected 462 | 235 35 192 Remotely . | . . . Salvage Created 231 | . . 231 Parts 17 | . . 17 Haulers Intercepted . | . . . Recyclers Shooed . | . . . Parts Field Recycled . | . . . Retrieved Matter . | . . . Parts Self-Destructed . | . . . Prevented . | . . . Kills | -11 -10 -10 ------- Run | Yrd Mat Sub Combat Hostiles Destroyed 6 | . . 6 Guns 4 | . . 4 AOE 2 | . . 2 Classes Destroyed 2 | . . 2 Subdweller 6 | . . 6 Federalist 1 | . . 1 Best Kill Streak 2 | . . 2 Combat Bots Only 2 | . . 2 Max Kills in Single Turn 2 | . . 2 Gunslinging . | . . . Exploded 1 | . . 1 Melee . | . . . Uniques/NPCs Destroyed . | . . . Combat | -11 -10 -10 -------- Run | Yrd Mat Sub Hostile Shots Fired 66 | . . 66 Missed 16 | . . 16 Hits 50 | . . 50 Projectile 50 | . . 50 Damage Taken 1191 | . . 1191 Core 252 | . . 252 Absorbed by Shields . | . . . Core Remaining (%) 100 | 100 . . Volleys Fired 43 | . . 43 Largest 2 | . . 2 Hottest 110 | . . 110 Shots Fired 76 | . . 76 Gun 68 | . . 68 Cannon 2 | . . 2 Launcher 6 | . . 6 Special . | . . . Kinetic 41 | . . 41 Thermal 29 | . . 29 Explosive 6 | . . 6 Electromagnetic . | . . . Robot Hit Streak 15 | . . 15 Robot Miss Streak 3 | . . 3 Penetration Max . | . . . Secondary Targets . | . . . Shots Hit Robots 54 | . . 54 Core Hits 16 | . . 16 Critical Kills . | . . . Critical Parts Destroyed . | . . . Critical Strikes 1 | . . 1 Destroy 1 | . . 1 Melee Attacks . | . . . Impact . | . . . Slashing . | . . . Piercing . | . . . Sneak Attacks . | . . . Combat Hostiles . | . . . Follow-up Attacks . | . . . Damage Inflicted 934 | . . 934 Guns 545 | . . 545 Cannons . | . . . Explosions 389 | . . 389 Melee . | . . . Ramming . | . . . Kinetic 273 | . . 273 Thermal 272 | . . 272 Explosive 389 | . . 389 Electromagnetic . | . . . Impact . | . . . Slashing . | . . . Piercing . | . . . Highest Corruption . | . . . Average Corruption . | . . . Corruption Purged . | . . . Corruption Blocked . | . . . Overload Shots . | . . . Overflow Damage 5 | . . 5 Projectiles . | . . . Explosions 5 | . . 5 Melee . | . . . Knockbacks . | . . . Impact . | . . . Kinetic . | . . . Secondary . | . . . Self-Inflicted Damage 58 | . . 58 Shots 3 | . . 3 Rammed . | . . . Targets Rammed . | . . . Kicked . | . . . Crushed . | . . . Highest Temperature 6 | . . 6 Average Temperature 2 | . . 2 Received Heat Transfer 138 | . . 138 Siege Activations . | . . . Martial Activations . | . . . Shielding Activations . | . . . Robots Disrupted . | . . . Combat Hostiles . | . . . Robots Corrupted . | . . . Combat Hostiles . | . . . Parts Fried . | . . . Impact Corruptions . | . . . Robots Melted . | . . . Combat Hostiles . | . . . Parts Melted 1 | . . 1 Heat Transferred 498 | . . 498 Parts Sabotaged . | . . . Parts Stolen . | . . . Parts Stripped . | . . . Power Chain Reactions . | . . . Alert | -11 -10 -10 ------- Run | Yrd Mat Sub Maximum Alert Level . | . . . Low Security (%) 100 | 100 100 . Level 1 . | . . . Level 2 . | . . . Level 3 . | . . . Level 4 . | . . . Level 5 . | . . . High Security . | . . . Max Security . | . . . Peak Influence . | . . . Initial . | . . . Average . | . . . Influence Increases . | . . . Influence Decreases . | . . . Squads Dispatched . | . . . Investigation . | . . . Extermination . | . . . Reinforcement . | . . . Assault . | . . . Garrison . | . . . Intercept . | . . . Searches Triggered . | . . . Construction Impeded . | . . . Haulers Reinforced . | . . . Active Scanning Responses . | . . . Cargo Convoy Interrupts . | . . . Stealth | -11 -10 -10 --------- Run | Yrd Mat Sub Distress Signals . | . . . Communications Jammed . | . . . Distress Signals . | . . . Times Spotted 9 | . . 9 Peak Tracking Total 2 | . . 2 Tactical Retreats . | . . . Traps | -11 -10 -10 ------- Run | Yrd Mat Sub Traps Triggered 1 | . . 1 Indirectly . | . . . Trap Hack Attempts . | . . . Triggered . | . . . Disarmed . | . . . Reprogrammed . | . . . Reused . | . . . Traps Extracted . | . . . Installed . | . . . Triggered . | . . . Machines | -11 -10 -10 ---------- Run | Yrd Mat Sub Machines Disabled . | . . . Max in Single Turn . | . . . Machines Repaired . | . . . Machines Dismantled . | . . . Machines Sabotaged . | . . . Overloaded Fab Kills . | . . . Hacking | -11 -10 -10 --------- Run | Yrd Mat Sub Machines Accessed . | . . . Terminals . | . . . Fabricators . | . . . Repair Stations . | . . . Recycling Units . | . . . Scanalyzers . | . . . Garrison Access . | . . . Total Hacks . | . . . Successful . | . . . Failed . | . . . Catastrophic . | . . . Database Lockouts . | . . . Manual . | . . . Terminals . | . . . Fabricators . | . . . Repair Stations . | . . . Recycling Units . | . . . Scanalyzers . | . . . Garrison Access . | . . . Terminal Hacks . | . . . Fabricator Hacks . | . . . Repair Station Hacks . | . . . Recycling Unit Hacks . | . . . Scanalyzer . | . . . Garrison Access Hacks . | . . . Unauthorized Hacks . | . . . Terminals . | . . . Fabricators . | . . . Repair Stations . | . . . Recycling Units . | . . . Scanalyzers . | . . . Garrison Access . | . . . Data Cores Recovered . | . . . Used . | . . . Hacking Detections . | . . . Full Trace Events . | . . . Feedback Events . | . . . Feedback Blocked . | . . . Robot Schematics Acquired . | . . . Robots Built . | . . . Authchips . | . . . Time . | . . . Total Robot Build Rating . | . . . Part Schematics Acquired . | . . . Parts Built . | . . . Authchips . | . . . Time . | . . . Total Part Build Rating . | . . . Parts Repaired . | . . . Time . | . . . Parts Recycled . | . . . Recycled Matter . | . . . Retrieved Matter . | . . . Retrieved Components . | . . . Parts Scanalyzed . | . . . Part Schematics Acquired . | . . . Parts Damaged . | . . . Bothacking | -11 -10 -10 ------------ Run | Yrd Mat Sub Used RIF Installer . | . . . Robots Hacked . | . . . Non-combat . | . . . Combat . | . . . Robot Hacks Applied . | . . . Relay Couplers Released . | . . . Fabnet Peak Effective % . | . . . Robots Rewired . | . . . Allies Hacked . | . . . Hacks Repelled . | . . . Allies | -11 -10 -10 -------- Run | Yrd Mat Sub Total Allies . | . . . Largest Group . | . . . Highest-Rated Group . | . . . Highest-Rated Ally . | . . . Total Orders . | . . . Ally Attacks . | . . . Total Damage . | . . . Kills . | . . . Allies Corrupted . | . . . Allies Melted . | . . . Intel | -11 -10 -10 ------- Run | Yrd Mat Sub Active Infowar (turns) . | . . . Robot Analysis Total . | . . . Derelict Logs Recovered 1 | . . 1 Drone Launches . | . . . Drone Recoveries . | . . . Exploration | -11 -10 -10 ------------- Run | Yrd Mat Sub Turns Passed 1236 | 81 119 1036 Spaces Moved 783 | 47 73 663 Core 4 | 4 . . Treads 430 | 43 73 314 Legs . | . . . Wheels 349 | . . 349 Hover . | . . . Flight . | . . . Fastest Speed 50 | 50 160 110 Average Speed 137 | 150 160 134 Slowest Speed 160 | 160 160 160 Overloaded Moves . | . . . Propulsion Burnouts . | . . . Robots Hopped . | . . . Potential Cave-ins . | . . . Cave-ins Triggered . | . . . Exploration Rate (%) 20 | 4 20 38 Regions Visited 2 Branch Regions 1 Pre-discovered Areas 1 | . . 1 Known Exits Taken . | . . . Unknown Exits Taken 2 | 1 1 . Scrap Searched . | . . . Spaces Dug . | . . . Terrain Destroyed 34 | . . 34 Melee . | . . . Projectile 2 | . . 2 AOE 32 | . . 32 Terrain Rammed . | . . . Walls Destroyed . | . . . Machines Disabled . | . . . Actions | -11 -10 -10 --------- Run | Yrd Mat Sub Total 862 | 54 75 733 Wait 2 | . . 2 Move 781 | 46 72 663 Hop . | . . . Pick Up 14 | 2 2 10 Fast Attach 9 | 6 1 2 Attach 5 | . . 5 Detach . | . . . Swap 7 | . . 7 Drop 1 | . . 1 Fire 43 | . . 43 Melee . | . . . Ram . | . . . Kick . | . . . Crush . | . . . Escape Stasis . | . . . Rewire . | . . . Trap . | . . . Miscellaneous . | . . . Route ------- -11/Scrapyard -10/Materials -10/Subcaves History --------- Turn | Location | Event 7 | -11/Scrapyard | Discovered new exit (range 15) 82 | -11/Scrapyard | Entered Materials 83 | -10/Materials | Met a group of wandering Federalists 193 | -10/Materials | Discovered new exit (range 7) 201 | -10/Materials | Entered Subcaves 202 | -10/Subcaves | Continued accompanying wandering Federalists (3) 255 | -10/Subcaves | Shifting Twisted Machinery released Sub. Monowheel 322 | -10/Subcaves | Build established: Mutant 403 | -10/Subcaves | Lost 4 allies 759 | -10/Subcaves | Core integrity fell below 50% 826 | -10/Subcaves | Lost 4 parts (1p2n1w) 860 | -10/Subcaves | A swath of the cavern ceiling suddenly collapsed 882 | -10/Subcaves | Core integrity fell below 20% 1237 | -10/Subcaves | Destroyed by 3D-HCA(R) with Subdweller Machine Gun Last Messages --------------- 00811_ Acquired Sub. Machine Gun. 00812_ Acquired 10 matter. 00822_ Subatomizers dissect the Lgt. Assault Rifle, destroying it. A swath of the cavern ceiling suddenly collapses. 00873_ Sub. Laser shoots sparks and powers down. 00881_ Sub. Machine Gun shoots sparks and powers down. 00898_ Y2-BPO(R) destroyed. 00901_ Acquired 21 matter. 00939_ Subatomizers dissect the Disposable Heat Sink. 00966_ 6J-HTF(u) deconstructs Twisted Machinery. 01062_ Acquired Sub. Beam Cannon. 01130_ Subatomizers dissect the Aluminum Leg. 01180_ Sub. Monowheel shoots sparks and powers down. 01233_ Broken Sub. Monowheel destroyed. Map ----- +----------------------------------------------------+ | ????????????????????????????????????## ##??? | | ????????????????????????????????????# #??? | | ????????????????????????????????????# # #??? | | ????????????????????????????????????# ## ##??? | | ????????????????????? ????????##???# ?## #???? | | ????????????????????? ????????# ##### ?## ##???? | | ????????????????????? ????????# ## ### ##???? | | ????????????????????# ????????# # #???? | | ??????????????????## ??????????# ##???? | | ??????????????###?# ####?????# #????? | | ???????##?????# ## ###??## # #????? | | ??????# ##### #?# #### #########?? | | ??????? # #??# ## #?? | | ????????? ##??# #?? | | ??????????? ##?## ##?? | | ????????????# #??# #??? | | ?????????????# #??# #??? | | ?????????????? ##?# ## #??? | | ?????????????????# #### ??## ##??? | | ?????????????????# ###????# ######???? | | ???????????????### #?????# ##????????? | | ???????????????# ######## ##?????????? | | ???????????????## ######## ####???????? | | ???????????????## ##???## ##??????? | | ???????????????# #??### #??????? | | ???????????????# ####;@ ##??????? | | ???????????????# R ####???????? | | ???????????????##" R ## ###??????????? | | ????????????????#" ##; #### ##????????????? | | ????????????????#" #### ##??## ##????????????? | | ????????????????#" #?#####??## #????????????? | | ???????????????# #### ??#### ##????????????? | | ???????????????# ##?# ### ### #?????????????? | | ???????????????# ##??# ## #?????????????? | | ???????????????###?????# ## ##????????????? | | ????????????????????##### ##?????? ????? | | ???????????????????##" # ### ???? | | ???????????????????# "" ???? | | ???????????????????## " """ ???? | | ????????###########?# ## " "" """""""" ???? | | ????????#"# # ### "##" """""""""" ?????? | | ????????# # ## ## "####""""" " ## #??????? | | ????????# ### #??#""" ""####???????? | | ??????### #& = ##??"""" " ##??????? | | ????## % ##???"" # ## #??????? | | # #??????### # #?# #??????? | | ##????????# ## ?# #??????? | | ##???????## ## ##?# #??????? | | ### #??????##" ""# #??# #??????? | | ###??## ##?????##"" " #??# ##?????? | +----------------------------------------------------+ Best States ------------- Heat Dissipation 25 Energy Generation 15 Energy Capacity 250 Matter Stores 300 Matter Capacity 300 Sight Range 16 Terrain Scan Density 10 Evasion (%) 40 Recoil Reduction 2 Item Schematics ----------------- None Robot Schematics ------------------ None Fabricated ------------ Nothing Repaired ---------- Nothing Alien Tech Used ----------------- None Achievements -------------- None Challenges ------------ None Game ------ Seed ScrapoidHypercooledDevice Manual? 0 Play Time 00:11:53 Cumulative 259.5 hours Start 2025.07.22 @ 14:43:16 End 2025.07.22 @ 14:51:52 Sessions 1 Manual Loads 0 Difficulty Rogue Special Mode None Game No. 232 Rogue 232 Adventurer 0 Explorer 0 Win Type - Total 1 Types 1/0/0/0/0/0/0/0/0/0 Lore% 77 Gallery% 64 Achievement% 55 Wizard Run 0 Options --------- Layout 1 ASCII 0 Keyboard 0 Movement Mouse Keybinds 0 Fullscreen 1 Font 24/Smallcaps Map View 50x35 Zoom Use 0% Tactical HUD 1 Map Filters NONE Filters NONE Steam 1 RUN: 49403b60-7da8-452e-bd93-6a7cec2fc68c